{"text_format":"1","workbook":"xlsx","n_sheets":5,"sheets":["職員処理欄","申請枚数","記入例","廃車申告（1）","DV_List"],"not_rendered":{"charts":0,"images":12,"macros":1,"external_links":0,"defined_names":9,"comments":0,"pivot_tables":0},"unopened":[],"bounds":{"document_bytes":16777216,"sheet_cells":100000,"rows_first":2000,"rows_last":500,"rows_between":2000,"halvings":0,"cell_chars":16384,"cell_head_chars":4096},"cells_cut":0,"cells_raw":0,"read":"whole","date_system":"1900"}

{"sheet":"職員処理欄","index":0,"n_rows":50,"n_cols":71,"rows_kept":50,"cut":false,"hidden":true,"merged":[]}
["シート","所有者の氏名","所有者のカナ氏名","所有者の住所","所有者の生年月日","所有者の電話番号","法人又は事業所の名称（所有者法人）","法人又は事業所の所在地（所有者法人）","法人又は事業所の代表者氏名（所有者法人）","法人又は事業所の代表者カナ氏名（所有者法人）","連絡先電話番号（所有者法人）","法人番号（所有者）","法人又は事業所の名称（所有者屋号）","法人又は事業所の所在地（所有者屋号）","法人又は事業所の代表者氏名（所有者屋号）","法人又は事業所の代表者カナ氏名（所有者屋号）","連絡先電話番号（所有者屋号）","使用者","使用者種別","使用者の氏名","使用者のカナ氏名","使用者の住所","使用者の生年月日","使用者の電話番号","法人又は事業所の名称（使用者法人）","法人又は事業所の所在地（使用者法人）","法人又は事業所の代表者氏名（使用者法人）","法人又は事業所の代表者カナ氏名（使用者法人）","連絡先電話番号（使用者法人）","法人番号（使用者）","法人又は事業所の名称（使用者屋号）","法人又は事業所の所在地（使用者屋号）","法人又は事業所の代表者氏名（使用者屋号）","法人又は事業所の代表者カナ氏名（使用者屋号）","連絡先電話番号（使用者屋号）","誓約確認１","誓約確認２","誓約確認３","誓約確認４","誓約確認５","廃車理由について","車種","車種の詳細","標識番号（１）　例：神戸市20","標識番号（２）　例：A","標識番号（３）　例：12345","申告年月日","廃車年月日","車名","車名（その他）","型式","年式","車台番号","型式認定番号","総排気量（CC）","車体の長さ","車体の幅","最高速度","標識（ナンバープレート）","返納できない理由","返納できない具体的な理由","盗難による廃車申告ですか？","盗難届の届出年月日","被害年月日","届出警察署","被害届受理番号","上記説明のとおり、標識返納、廃車申告済証の取扱いについて確認しました。","その他連絡","その他添付書類１","その他添付書類２","メモ"]
[1,{"$f":"IFERROR(IF(INDIRECT(\"'廃車申告（\"&$A2&\"）'!$J$52\")<>\"\", INDIRECT(\"'廃車申告（\"&$A2&\"）'!$J$52\"), \"\"), \"\")","v":""},{"$f":"IFERROR(IF(INDIRECT(\"'廃車申告（\"&$A2&\"）'!O50\")<>\"\", INDIRECT(\"'廃車申告（\"&$A2&\"）'!O50\"), \"\"), \"\")","v":""},{"$f":"IF(\n  IFERROR(INDIRECT(\"'廃車申告（\"&$A2&\"）'!J47\"),\"\")=\"\",\"\",\n  IFERROR(\n    IF(INDIRECT(\"'廃車申告（\"&$A2&\"）'!J45\")=\"\",\"\",INDIRECT(\"'廃車申告（\"&$A2&\"）'!J45\")&\" \") &\n    IF(INDIRECT(\"'廃車申告（\"&$A2&\"）'!L45\")=\"\",\"\",INDIRECT(\"'廃車申告（\"&$A2&\"）'!L45\")&\" \") &\n    IF(INDIRECT(\"'廃車申告（\"&$A2&\"）'!O45\")=\"\",\"\",INDIRECT(\"'廃車申告（\"&$A2&\"）'!O45\")&\" \") &\n    IF(INDIRECT(\"'廃車申告（\"&$A2&\"）'!P45\")=\"\",\"\",INDIRECT(\"'廃車申告（\"&$A2&\"）'!P45\")&\" \") &\n    IF(INDIRECT(\"'廃車申告（\"&$A2&\"）'!J47\")=\"\",\"\",INDIRECT(\"'廃車申告（\"&$A2&\"）'!J47\")),\n    \"\"\n  )\n)","v":""},{"$f":"IF(\n  IFERROR(INDIRECT(\"'廃車申告（\"&$A2&\"）'!J55\"),\"\")=\"\",\"\",\n  TRIM(\n    IF(IFERROR(INDIRECT(\"'廃車申告（\"&$A2&\"）'!J55\"),\"\")=\"\",\"\",IFERROR(INDIRECT(\"'廃車申告（\"&$A2&\"）'!J55\"),\"\")&\" \") &\n    IF(IFERROR(INDIRECT(\"'廃車申告（\"&$A2&\"）'!Q55\"),\"\")=\"\",\"\",IFERROR(INDIRECT(\"'廃車申告（\"&$A2&\"）'!Q55\"),\"\")&\" \") &\n    IF(IFERROR(INDIRECT(\"'廃車申告（\"&$A2&\"）'!S55\"),\"\")=\"\",\"\",IFERROR(INDIRECT(\"'廃車申告（\"&$A2&\"）'!S55\"),\"\")&\" \") &\n    IF(IFERROR(INDIRECT(\"'廃車申告（\"&$A2&\"）'!U55\"),\"\")=\"\",\"\",IFERROR(INDIRECT(\"'廃車申告（\"&$A2&\"）'!U55\"),\"\")&\" \") &\n    IF(IFERROR(INDIRECT(\"'廃車申告（\"&$A2&\"）'!W55\"),\"\")=\"\",\"\",IFERROR(INDIRECT(\"'廃車申告（\"&$A2&\"）'!W55\"),\"\")&\" \") &\n    IF(IFERROR(INDIRECT(\"'廃車申告（\"&$A2&\"）'!Y55\"),\"\")=\"\",\"\",IFERROR(INDIRECT(\"'廃車申告（\"&$A2&\"）'!Y55\"),\"\")&\" \") &\n    IF(IFERROR(INDIRECT(\"'廃車申告（\"&$A2&\"）'!AA55\"),\"\")=\"\",\"\",IFERROR(INDIRECT(\"'廃車申告（\"&$A2&\"）'!AA55\"),\"\"))\n  )\n)","v":""},{"$f":"IF(\n  IFERROR(INDIRECT(\"'廃車申告（\"&$A2&\"）'!AH55\"),\"\")<>\"\",\n  IFERROR(INDIRECT(\"'廃車申告（\"&$A2&\"）'!AH55\"),\"\"),\n  \"\"\n)","v":""},null,null,null,null,null,null,null,null,null,null,null,null,null,{"$f":"IF(\n  IFERROR(INDIRECT(\"'廃車申告（\"&$A2&\"）'!J67\"),\"\")<>\"\",\n  IFERROR(INDIRECT(\"'廃車申告（\"&$A2&\"）'!J67\"),\"\"),\n  \"\"\n)","v":""},{"$f":"IF(\n  IFERROR(INDIRECT(\"'廃車申告（\"&$A2&\"）'!O65\"),\"\")<>\"\",\n  IFERROR(INDIRECT(\"'廃車申告（\"&$A2&\"）'!O65\"),\"\"),\n  \"\"\n)","v":""},{"$f":"IF(\n  IFERROR(INDIRECT(\"'廃車申告（\"&$A2&\"）'!J61\"),\"\")=\"\",\"\",\n  TRIM(\n    IF(IFERROR(INDIRECT(\"'廃車申告（\"&$A2&\"）'!J59\"),\"\")=\"\",\"\",IFERROR(INDIRECT(\"'廃車申告（\"&$A2&\"）'!J59\"),\"\")&\" \") &\n    IF(IFERROR(INDIRECT(\"'廃車申告（\"&$A2&\"）'!L59\"),\"\")=\"\",\"\",IFERROR(INDIRECT(\"'廃車申告（\"&$A2&\"）'!L59\"),\"\")&\" \") &\n    IF(IFERROR(INDIRECT(\"'廃車申告（\"&$A2&\"）'!O59\"),\"\")=\"\",\"\",IFERROR(INDIRECT(\"'廃車申告（\"&$A2&\"）'!O59\"),\"\")&\" \") &\n    IF(IFERROR(INDIRECT(\"'廃車申告（\"&$A2&\"）'!P59\"),\"\")=\"\",\"\",IFERROR(INDIRECT(\"'廃車申告（\"&$A2&\"）'!P59\"),\"\")&\" \") &\n    IF(IFERROR(INDIRECT(\"'廃車申告（\"&$A2&\"）'!J61\"),\"\")=\"\",\"\",IFERROR(INDIRECT(\"'廃車申告（\"&$A2&\"）'!J61\"),\"\")&\" \")\n  )\n)","v":""},{"$f":"IF(\n  IFERROR(INDIRECT(\"'廃車申告（\"&$A2&\"）'!J70\"),\"\")=\"\",\"\",\n  TRIM(\n    IF(IFERROR(INDIRECT(\"'廃車申告（\"&$A2&\"）'!J70\"),\"\")=\"\",\"\",IFERROR(INDIRECT(\"'廃車申告（\"&$A2&\"）'!J70\"),\"\")&\" \") &\n    IF(IFERROR(INDIRECT(\"'廃車申告（\"&$A2&\"）'!Q70\"),\"\")=\"\",\"\",IFERROR(INDIRECT(\"'廃車申告（\"&$A2&\"）'!Q70\"),\"\")&\" \") &\n    IF(IFERROR(INDIRECT(\"'廃車申告（\"&$A2&\"）'!S70\"),\"\")=\"\",\"\",IFERROR(INDIRECT(\"'廃車申告（\"&$A2&\"）'!S70\"),\"\")&\" \") &\n    IF(IFERROR(INDIRECT(\"'廃車申告（\"&$A2&\"）'!U70\"),\"\")=\"\",\"\",IFERROR(INDIRECT(\"'廃車申告（\"&$A2&\"）'!U70\"),\"\")&\" \") &\n    IF(IFERROR(INDIRECT(\"'廃車申告（\"&$A2&\"）'!W70\"),\"\")=\"\",\"\",IFERROR(INDIRECT(\"'廃車申告（\"&$A2&\"）'!W70\"),\"\")&\" \") &\n    IF(IFERROR(INDIRECT(\"'廃車申告（\"&$A2&\"）'!Y70\"),\"\")=\"\",\"\",IFERROR(INDIRECT(\"'廃車申告（\"&$A2&\"）'!Y70\"),\"\")&\" \") &\n    IF(IFERROR(INDIRECT(\"'廃車申告（\"&$A2&\"）'!AA70\"),\"\")=\"\",\"\",IFERROR(INDIRECT(\"'廃車申告（\"&$A2&\"）'!AA70\"),\"\")&\" \")\n  )\n)","v":""},{"$f":"IF(\n  IFERROR(INDIRECT(\"'廃車申告（\"&$A2&\"）'!AH70\"),\"\")=\"\",\"\",\n  IFERROR(INDIRECT(\"'廃車申告（\"&$A2&\"）'!AH70\"),\"\")\n)","v":"92918472917"},null,null,null,null,null,null,null,null,null,null,null,null,null,null,null,null,{"$f":"IF(\n  IFERROR(INDIRECT(\"'廃車申告（\"&$A2&\"）'!AN3\"),\"\")=\"\",\"\",\n  IFERROR(INDIRECT(\"'廃車申告（\"&$A2&\"）'!AN3\"),\"\")\n)","v":""},null,null,{"$f":"IF(\n  SUBSTITUTE(SUBSTITUTE(IFERROR(INDIRECT(\"'廃車申告（\"&$A2&\"）'!CH12\"),\"\"),\" \",\"\"),\"　\",\"\")=\"\",\"\",\n  \"神戸市\"&LEFT(SUBSTITUTE(SUBSTITUTE(IFERROR(INDIRECT(\"'廃車申告（\"&$A2&\"）'!CH12\"),\"\"),\" \",\"\"),\"　\",\"\"),2)\n)","v":""},{"$f":"IF(\n  SUBSTITUTE(SUBSTITUTE(IFERROR(INDIRECT(\"'廃車申告（\"&$A2&\"）'!CH12\"),\"\"),\" \",\"\"),\"　\",\"\")=\"\",\"\",\n  MID(SUBSTITUTE(SUBSTITUTE(IFERROR(INDIRECT(\"'廃車申告（\"&$A2&\"）'!CH12\"),\"\"),\" \",\"\"),\"　\",\"\"),3,1)\n)","v":""},{"$f":"IF(\n  SUBSTITUTE(SUBSTITUTE(IFERROR(INDIRECT(\"'廃車申告（\"&$A2&\"）'!CH12\"),\"\"),\" \",\"\"),\"　\",\"\")=\"\",\"\",\n  RIGHT(SUBSTITUTE(SUBSTITUTE(IFERROR(INDIRECT(\"'廃車申告（\"&$A2&\"）'!CH12\"),\"\"),\" \",\"\"),\"　\",\"\"),5)\n)","v":""},null,null,{"$f":"IF(\n  IFERROR(INDIRECT(\"'廃車申告（\"&$A2&\"）'!BA57\"),\"\")=\"\",\"\",\n  IFERROR(INDIRECT(\"'廃車申告（\"&$A2&\"）'!BA57\"),\"\")\n)","v":""},null,{"$f":"IF(\n  IFERROR(INDIRECT(\"'廃車申告（\"&$A2&\"）'!BS57\"),\"\")=\"\",\"\",\n  IFERROR(INDIRECT(\"'廃車申告（\"&$A2&\"）'!BS57\"),\"\")\n)","v":""},null,{"$f":"IF(\n  IFERROR(INDIRECT(\"'廃車申告（\"&$A2&\"）'!BA63\"),\"\")=\"\",\"\",\n  IFERROR(INDIRECT(\"'廃車申告（\"&$A2&\"）'!BA63\"),\"\")\n)","v":""},{"$f":"IF(\n  IFERROR(INDIRECT(\"'廃車申告（\"&$A2&\"）'!CA63\"),\"\")=\"\",\"\",\n  IFERROR(INDIRECT(\"'廃車申告（\"&$A2&\"）'!CA63\"),\"\")\n)","v":""},{"$f":"IF(\n  IFERROR(INDIRECT(\"'廃車申告（\"&$A2&\"）'!CI57\"),\"\")=\"\",\"\",\n  IFERROR(INDIRECT(\"'廃車申告（\"&$A2&\"）'!CI57\"),\"\")\n)","v":""},null,null,null,{"$f":"IF(\n  IFERROR(INDIRECT(\"'廃車申告（\"&$A2&\"）'!BM67\"),\"\")=\"\",\"\",\n  IFERROR(INDIRECT(\"'廃車申告（\"&$A2&\"）'!BM67\"),\"\")\n)","v":""},{"$f":"IF('廃車申告（1）'!$BM$70<>\"\",'廃車申告（1）'!$BM$70,\"\")","v":""}]
[2,{"$f":"IFERROR(IF(INDIRECT(\"'廃車申告（\"&$A3&\"）'!$J$52\")<>\"\", INDIRECT(\"'廃車申告（\"&$A3&\"）'!$J$52\"), \"\"), \"\")","v":""},{"$f":"IFERROR(IF(INDIRECT(\"'廃車申告（\"&$A3&\"）'!O50\")<>\"\", INDIRECT(\"'廃車申告（\"&$A3&\"）'!O50\"), \"\"), \"\")","v":""},{"$f":"IF(\n  IFERROR(INDIRECT(\"'廃車申告（\"&$A3&\"）'!J47\"),\"\")=\"\",\"\",\n  IFERROR(\n    IF(INDIRECT(\"'廃車申告（\"&$A3&\"）'!J45\")=\"\",\"\",INDIRECT(\"'廃車申告（\"&$A3&\"）'!J45\")&\" \") &\n    IF(INDIRECT(\"'廃車申告（\"&$A3&\"）'!L45\")=\"\",\"\",INDIRECT(\"'廃車申告（\"&$A3&\"）'!L45\")&\" \") &\n    IF(INDIRECT(\"'廃車申告（\"&$A3&\"）'!O45\")=\"\",\"\",INDIRECT(\"'廃車申告（\"&$A3&\"）'!O45\")&\" \") &\n    IF(INDIRECT(\"'廃車申告（\"&$A3&\"）'!P45\")=\"\",\"\",INDIRECT(\"'廃車申告（\"&$A3&\"）'!P45\")&\" \") &\n    IF(INDIRECT(\"'廃車申告（\"&$A3&\"）'!J47\")=\"\",\"\",INDIRECT(\"'廃車申告（\"&$A3&\"）'!J47\")),\n    \"\"\n  )\n)","v":""},{"$f":"IF(\n  IFERROR(INDIRECT(\"'廃車申告（\"&$A3&\"）'!J55\"),\"\")=\"\",\"\",\n  TRIM(\n    IF(IFERROR(INDIRECT(\"'廃車申告（\"&$A3&\"）'!J55\"),\"\")=\"\",\"\",IFERROR(INDIRECT(\"'廃車申告（\"&$A3&\"）'!J55\"),\"\")&\" \") &\n    IF(IFERROR(INDIRECT(\"'廃車申告（\"&$A3&\"）'!Q55\"),\"\")=\"\",\"\",IFERROR(INDIRECT(\"'廃車申告（\"&$A3&\"）'!Q55\"),\"\")&\" \") &\n    IF(IFERROR(INDIRECT(\"'廃車申告（\"&$A3&\"）'!S55\"),\"\")=\"\",\"\",IFERROR(INDIRECT(\"'廃車申告（\"&$A3&\"）'!S55\"),\"\")&\" \") &\n    IF(IFERROR(INDIRECT(\"'廃車申告（\"&$A3&\"）'!U55\"),\"\")=\"\",\"\",IFERROR(INDIRECT(\"'廃車申告（\"&$A3&\"）'!U55\"),\"\")&\" \") &\n    IF(IFERROR(INDIRECT(\"'廃車申告（\"&$A3&\"）'!W55\"),\"\")=\"\",\"\",IFERROR(INDIRECT(\"'廃車申告（\"&$A3&\"）'!W55\"),\"\")&\" \") &\n    IF(IFERROR(INDIRECT(\"'廃車申告（\"&$A3&\"）'!Y55\"),\"\")=\"\",\"\",IFERROR(INDIRECT(\"'廃車申告（\"&$A3&\"）'!Y55\"),\"\")&\" \") &\n    IF(IFERROR(INDIRECT(\"'廃車申告（\"&$A3&\"）'!AA55\"),\"\")=\"\",\"\",IFERROR(INDIRECT(\"'廃車申告（\"&$A3&\"）'!AA55\"),\"\"))\n  )\n)","v":""},{"$f":"IF(\n  IFERROR(INDIRECT(\"'廃車申告（\"&$A3&\"）'!AH55\"),\"\")<>\"\",\n  IFERROR(INDIRECT(\"'廃車申告（\"&$A3&\"）'!AH55\"),\"\"),\n  \"\"\n)","v":""},null,null,null,null,null,null,null,null,null,null,null,null,null,{"$f":"IF(\n  IFERROR(INDIRECT(\"'廃車申告（\"&$A3&\"）'!J67\"),\"\")<>\"\",\n  IFERROR(INDIRECT(\"'廃車申告（\"&$A3&\"）'!J67\"),\"\"),\n  \"\"\n)","v":""},{"$f":"IF(\n  IFERROR(INDIRECT(\"'廃車申告（\"&$A3&\"）'!O65\"),\"\")<>\"\",\n  IFERROR(INDIRECT(\"'廃車申告（\"&$A3&\"）'!O65\"),\"\"),\n  \"\"\n)","v":""},{"$f":"IF(\n  IFERROR(INDIRECT(\"'廃車申告（\"&$A3&\"）'!J61\"),\"\")=\"\",\"\",\n  TRIM(\n    IF(IFERROR(INDIRECT(\"'廃車申告（\"&$A3&\"）'!J59\"),\"\")=\"\",\"\",IFERROR(INDIRECT(\"'廃車申告（\"&$A3&\"）'!J59\"),\"\")&\" \") &\n    IF(IFERROR(INDIRECT(\"'廃車申告（\"&$A3&\"）'!L59\"),\"\")=\"\",\"\",IFERROR(INDIRECT(\"'廃車申告（\"&$A3&\"）'!L59\"),\"\")&\" \") &\n    IF(IFERROR(INDIRECT(\"'廃車申告（\"&$A3&\"）'!O59\"),\"\")=\"\",\"\",IFERROR(INDIRECT(\"'廃車申告（\"&$A3&\"）'!O59\"),\"\")&\" \") &\n    IF(IFERROR(INDIRECT(\"'廃車申告（\"&$A3&\"）'!P59\"),\"\")=\"\",\"\",IFERROR(INDIRECT(\"'廃車申告（\"&$A3&\"）'!P59\"),\"\")&\" \") &\n    IF(IFERROR(INDIRECT(\"'廃車申告（\"&$A3&\"）'!J61\"),\"\")=\"\",\"\",IFERROR(INDIRECT(\"'廃車申告（\"&$A3&\"）'!J61\"),\"\")&\" \")\n  )\n)","v":""},{"$f":"IF(\n  IFERROR(INDIRECT(\"'廃車申告（\"&$A3&\"）'!J70\"),\"\")=\"\",\"\",\n  TRIM(\n    IF(IFERROR(INDIRECT(\"'廃車申告（\"&$A3&\"）'!J70\"),\"\")=\"\",\"\",IFERROR(INDIRECT(\"'廃車申告（\"&$A3&\"）'!J70\"),\"\")&\" \") &\n    IF(IFERROR(INDIRECT(\"'廃車申告（\"&$A3&\"）'!Q70\"),\"\")=\"\",\"\",IFERROR(INDIRECT(\"'廃車申告（\"&$A3&\"）'!Q70\"),\"\")&\" \") &\n    IF(IFERROR(INDIRECT(\"'廃車申告（\"&$A3&\"）'!S70\"),\"\")=\"\",\"\",IFERROR(INDIRECT(\"'廃車申告（\"&$A3&\"）'!S70\"),\"\")&\" \") &\n    IF(IFERROR(INDIRECT(\"'廃車申告（\"&$A3&\"）'!U70\"),\"\")=\"\",\"\",IFERROR(INDIRECT(\"'廃車申告（\"&$A3&\"）'!U70\"),\"\")&\" \") &\n    IF(IFERROR(INDIRECT(\"'廃車申告（\"&$A3&\"）'!W70\"),\"\")=\"\",\"\",IFERROR(INDIRECT(\"'廃車申告（\"&$A3&\"）'!W70\"),\"\")&\" \") &\n    IF(IFERROR(INDIRECT(\"'廃車申告（\"&$A3&\"）'!Y70\"),\"\")=\"\",\"\",IFERROR(INDIRECT(\"'廃車申告（\"&$A3&\"）'!Y70\"),\"\")&\" \") &\n    IF(IFERROR(INDIRECT(\"'廃車申告（\"&$A3&\"）'!AA70\"),\"\")=\"\",\"\",IFERROR(INDIRECT(\"'廃車申告（\"&$A3&\"）'!AA70\"),\"\")&\" \")\n  )\n)","v":""},{"$f":"IF(\n  IFERROR(INDIRECT(\"'廃車申告（\"&$A3&\"）'!AH70\"),\"\")=\"\",\"\",\n  IFERROR(INDIRECT(\"'廃車申告（\"&$A3&\"）'!AH70\"),\"\")\n)","v":""},null,null,null,null,null,null,null,null,null,null,null,null,null,null,null,null,{"$f":"IF(\n  IFERROR(INDIRECT(\"'廃車申告（\"&$A3&\"）'!AN3\"),\"\")=\"\",\"\",\n  IFERROR(INDIRECT(\"'廃車申告（\"&$A3&\"）'!AN3\"),\"\")\n)","v":""},null,null,{"$f":"IF(\n  SUBSTITUTE(SUBSTITUTE(IFERROR(INDIRECT(\"'廃車申告（\"&$A3&\"）'!CH12\"),\"\"),\" \",\"\"),\"　\",\"\")=\"\",\"\",\n  \"神戸市\"&LEFT(SUBSTITUTE(SUBSTITUTE(IFERROR(INDIRECT(\"'廃車申告（\"&$A3&\"）'!CH12\"),\"\"),\" \",\"\"),\"　\",\"\"),2)\n)","v":""},{"$f":"IF(\n  SUBSTITUTE(SUBSTITUTE(IFERROR(INDIRECT(\"'廃車申告（\"&$A3&\"）'!CH12\"),\"\"),\" \",\"\"),\"　\",\"\")=\"\",\"\",\n  MID(SUBSTITUTE(SUBSTITUTE(IFERROR(INDIRECT(\"'廃車申告（\"&$A3&\"）'!CH12\"),\"\"),\" \",\"\"),\"　\",\"\"),3,1)\n)","v":""},{"$f":"IF(\n  SUBSTITUTE(SUBSTITUTE(IFERROR(INDIRECT(\"'廃車申告（\"&$A3&\"）'!CH12\"),\"\"),\" \",\"\"),\"　\",\"\")=\"\",\"\",\n  RIGHT(SUBSTITUTE(SUBSTITUTE(IFERROR(INDIRECT(\"'廃車申告（\"&$A3&\"）'!CH12\"),\"\"),\" \",\"\"),\"　\",\"\"),5)\n)","v":""},null,null,{"$f":"IF(\n  IFERROR(INDIRECT(\"'廃車申告（\"&$A3&\"）'!BA57\"),\"\")=\"\",\"\",\n  IFERROR(INDIRECT(\"'廃車申告（\"&$A3&\"）'!BA57\"),\"\")\n)","v":""},null,{"$f":"IF(\n  IFERROR(INDIRECT(\"'廃車申告（\"&$A3&\"）'!BS57\"),\"\")=\"\",\"\",\n  IFERROR(INDIRECT(\"'廃車申告（\"&$A3&\"）'!BS57\"),\"\")\n)","v":""},null,{"$f":"IF(\n  IFERROR(INDIRECT(\"'廃車申告（\"&$A3&\"）'!BA63\"),\"\")=\"\",\"\",\n  IFERROR(INDIRECT(\"'廃車申告（\"&$A3&\"）'!BA63\"),\"\")\n)","v":""},{"$f":"IF(\n  IFERROR(INDIRECT(\"'廃車申告（\"&$A3&\"）'!CA63\"),\"\")=\"\",\"\",\n  IFERROR(INDIRECT(\"'廃車申告（\"&$A3&\"）'!CA63\"),\"\")\n)","v":""},{"$f":"IF(\n  IFERROR(INDIRECT(\"'廃車申告（\"&$A3&\"）'!CI57\"),\"\")=\"\",\"\",\n  IFERROR(INDIRECT(\"'廃車申告（\"&$A3&\"）'!CI57\"),\"\")\n)","v":""},null,null,null,{"$f":"IF(\n  IFERROR(INDIRECT(\"'廃車申告（\"&$A3&\"）'!BM67\"),\"\")=\"\",\"\",\n  IFERROR(INDIRECT(\"'廃車申告（\"&$A3&\"）'!BM67\"),\"\")\n)","v":""},{"$f":"IF('廃車申告（1）'!$BM$70<>\"\",'廃車申告（1）'!$BM$70,\"\")","v":""}]
[3,"","","","","",null,null,null,null,null,null,null,null,null,null,null,null,null,"","","","","",null,null,null,null,null,null,null,null,null,null,null,null,null,null,null,null,"",null,null,"","","",null,null,"",null,"",null,"","","",null,null,null,"",{"$f":"IF('廃車申告（1）'!$BM$70<>\"\",'廃車申告（1）'!$BM$70,\"\")","v":""}]
[4,"","","","","",null,null,null,null,null,null,null,null,null,null,null,null,null,"","","","","",null,null,null,null,null,null,null,null,null,null,null,null,null,null,null,null,"",null,null,"","","",null,null,"",null,"",null,"","","",null,null,null,"",{"$f":"IF('廃車申告（1）'!$BM$70<>\"\",'廃車申告（1）'!$BM$70,\"\")","v":""}]
[5,"","","","","",null,null,null,null,null,null,null,null,null,null,null,null,null,"","","","","",null,null,null,null,null,null,null,null,null,null,null,null,null,null,null,null,"",null,null,"","","",null,null,"",null,"",null,"","","",null,null,null,"",{"$f":"IF('廃車申告（1）'!$BM$70<>\"\",'廃車申告（1）'!$BM$70,\"\")","v":""}]
[6,"","","","","",null,null,null,null,null,null,null,null,null,null,null,null,null,"","","","","",null,null,null,null,null,null,null,null,null,null,null,null,null,null,null,null,"",null,null,"","","",null,null,"",null,"",null,"","","",null,null,null,"",{"$f":"IF('廃車申告（1）'!$BM$70<>\"\",'廃車申告（1）'!$BM$70,\"\")","v":""}]
[7,null,"","","","",null,null,null,null,null,null,null,null,null,null,null,null,null,"","","","","",null,null,null,null,null,null,null,null,null,null,null,null,null,null,null,null,"",null,null,"","","",null,null,"",null,"",null,"","","",null,null,null,"",{"$f":"IF('廃車申告（1）'!$BM$70<>\"\",'廃車申告（1）'!$BM$70,\"\")","v":""}]
[8,"","","","","",null,null,null,null,null,null,null,null,null,null,null,null,null,"","","","","",null,null,null,null,null,null,null,null,null,null,null,null,null,null,null,null,"",null,null,"","","",null,null,"",null,"",null,"","","",null,null,null,"",{"$f":"IF('廃車申告（1）'!$BM$70<>\"\",'廃車申告（1）'!$BM$70,\"\")","v":""}]
[9,"","","","","",null,null,null,null,null,null,null,null,null,null,null,null,null,"","","","","",null,null,null,null,null,null,null,null,null,null,null,null,null,null,null,null,"",null,null,"","","",null,null,"",null,"",null,"","","",null,null,null,"",{"$f":"IF('廃車申告（1）'!$BM$70<>\"\",'廃車申告（1）'!$BM$70,\"\")","v":""}]
[10,"","","","","",null,null,null,null,null,null,null,null,null,null,null,null,null,"","","","","",null,null,null,null,null,null,null,null,null,null,null,null,null,null,null,null,"",null,null,"","","",null,null,"",null,"",null,"","","",null,null,null,"",{"$f":"IF('廃車申告（1）'!$BM$70<>\"\",'廃車申告（1）'!$BM$70,\"\")","v":""}]
[11,"","","","","",null,null,null,null,null,null,null,null,null,null,null,null,null,"","","","","",null,null,null,null,null,null,null,null,null,null,null,null,null,null,null,null,"",null,null,"","","",null,null,"",null,"",null,"","","",null,null,null,"",{"$f":"IF('廃車申告（1）'!$BM$70<>\"\",'廃車申告（1）'!$BM$70,\"\")","v":""}]
[12,"","","","","",null,null,null,null,null,null,null,null,null,null,null,null,null,"","","","","",null,null,null,null,null,null,null,null,null,null,null,null,null,null,null,null,"",null,null,"","","",null,null,"",null,"",null,"","","",null,null,null,"",{"$f":"IF('廃車申告（1）'!$BM$70<>\"\",'廃車申告（1）'!$BM$70,\"\")","v":""}]
[13,"","","","","",null,null,null,null,null,null,null,null,null,null,null,null,null,"","","","","",null,null,null,null,null,null,null,null,null,null,null,null,null,null,null,null,"",null,null,"","","",null,null,"",null,"",null,"","","",null,null,null,"",{"$f":"IF('廃車申告（1）'!$BM$70<>\"\",'廃車申告（1）'!$BM$70,\"\")","v":""}]
[14,"","","","","",null,null,null,null,null,null,null,null,null,null,null,null,null,"","","","","",null,null,null,null,null,null,null,null,null,null,null,null,null,null,null,null,"",null,null,"","","",null,null,"",null,"",null,"","","",null,null,null,"",{"$f":"IF('廃車申告（1）'!$BM$70<>\"\",'廃車申告（1）'!$BM$70,\"\")","v":""}]
[15,"","",{"$f":"IF(\n  IFERROR(INDIRECT(\"'廃車申告（\"&$A16&\"）'!J47\"),\"\")=\"\",\"\",\n  IFERROR(\n    IF(INDIRECT(\"'廃車申告（\"&$A16&\"）'!J45\")=\"\",\"\",INDIRECT(\"'廃車申告（\"&$A16&\"）'!J45\")&\" \") &\n    IF(INDIRECT(\"'廃車申告（\"&$A16&\"）'!L45\")=\"\",\"\",INDIRECT(\"'廃車申告（\"&$A16&\"）'!L45\")&\" \") &\n    IF(INDIRECT(\"'廃車申告（\"&$A16&\"）'!O45\")=\"\",\"\",INDIRECT(\"'廃車申告（\"&$A16&\"）'!O45\")&\" \") &\n    IF(INDIRECT(\"'廃車申告（\"&$A16&\"）'!P45\")=\"\",\"\",INDIRECT(\"'廃車申告（\"&$A16&\"）'!P45\")&\" \") &\n    IF(INDIRECT(\"'廃車申告（\"&$A16&\"）'!J47\")=\"\",\"\",INDIRECT(\"'廃車申告（\"&$A16&\"）'!J47\")),\n    \"\"\n  )\n)","v":""},"","",null,null,null,null,null,null,null,null,null,null,null,null,null,"","","","","",null,null,null,null,null,null,null,null,null,null,null,null,null,null,null,null,"",null,null,"","","",null,null,"",null,"",null,"","","",null,null,null,"",{"$f":"IF('廃車申告（1）'!$BM$70<>\"\",'廃車申告（1）'!$BM$70,\"\")","v":""}]
[16,"","","","","",null,null,null,null,null,null,null,null,null,null,null,null,null,"","","","","",null,null,null,null,null,null,null,null,null,null,null,null,null,null,null,null,"",null,null,"","","",null,null,"",null,"",null,"","","",null,null,null,"",{"$f":"IF('廃車申告（1）'!$BM$70<>\"\",'廃車申告（1）'!$BM$70,\"\")","v":""}]
[17,"","","","","",null,null,null,null,null,null,null,null,null,null,null,null,null,"","","","","",null,null,null,null,null,null,null,null,null,null,null,null,null,null,null,null,"",null,null,"","","",null,null,"",null,"",null,"","","",null,null,null,"",{"$f":"IF('廃車申告（1）'!$BM$70<>\"\",'廃車申告（1）'!$BM$70,\"\")","v":""}]
[18,"","","","","",null,null,null,null,null,null,null,null,null,null,null,null,null,"","","","","",null,null,null,null,null,null,null,null,null,null,null,null,null,null,null,null,"",null,null,"","","",null,null,"",null,"",null,"","","",null,null,null,"",{"$f":"IF('廃車申告（1）'!$BM$70<>\"\",'廃車申告（1）'!$BM$70,\"\")","v":""}]
[19,"","","","","",null,null,null,null,null,null,null,null,null,null,null,null,null,"","","","","",null,null,null,null,null,null,null,null,null,null,null,null,null,null,null,null,"",null,null,"","","",null,null,"",null,"",null,"","","",null,null,null,"",{"$f":"IF('廃車申告（1）'!$BM$70<>\"\",'廃車申告（1）'!$BM$70,\"\")","v":""}]
[20,"","","","","",null,null,null,null,null,null,null,null,null,null,null,null,null,"","","","","",null,null,null,null,null,null,null,null,null,null,null,null,null,null,null,null,"",null,null,"","","",null,null,"",null,"",null,"","","",null,null,null,"",{"$f":"IF('廃車申告（1）'!$BM$70<>\"\",'廃車申告（1）'!$BM$70,\"\")","v":""}]
[21,"","","","","",null,null,null,null,null,null,null,null,null,null,null,null,null,"","","","","",null,null,null,null,null,null,null,null,null,null,null,null,null,null,null,null,"",null,null,"","","",null,null,"",null,"",null,"","","",null,null,null,"",{"$f":"IF('廃車申告（1）'!$BM$70<>\"\",'廃車申告（1）'!$BM$70,\"\")","v":""}]
[22,"","","","","",null,null,null,null,null,null,null,null,null,null,null,null,null,"","","","","",null,null,null,null,null,null,null,null,null,null,null,null,null,null,null,null,"",null,null,"","","",null,null,"",null,"",null,"","","",null,null,null,"",{"$f":"IF('廃車申告（1）'!$BM$70<>\"\",'廃車申告（1）'!$BM$70,\"\")","v":""}]
[23,"","","","","",null,null,null,null,null,null,null,null,null,null,null,null,null,"","","","","",null,null,null,null,null,null,null,null,null,null,null,null,null,null,null,null,"",null,null,"","","",null,null,"",null,"",null,"","","",null,null,null,"",{"$f":"IF('廃車申告（1）'!$BM$70<>\"\",'廃車申告（1）'!$BM$70,\"\")","v":""}]
[24,"","","","","",null,null,null,null,null,null,null,null,null,null,null,null,null,"","","","","",null,null,null,null,null,null,null,null,null,null,null,null,null,null,null,null,"",null,null,"","","",null,null,"",null,"",null,"","","",null,null,null,"",{"$f":"IF('廃車申告（1）'!$BM$70<>\"\",'廃車申告（1）'!$BM$70,\"\")","v":""}]
[25,"","","","","",null,null,null,null,null,null,null,null,null,null,null,null,null,"","","","","",null,null,null,null,null,null,null,null,null,null,null,null,null,null,null,null,"",null,null,"","","",null,null,"",null,"",null,"","","",null,null,null,"",{"$f":"IF('廃車申告（1）'!$BM$70<>\"\",'廃車申告（1）'!$BM$70,\"\")","v":""}]
[26,"","","","","",null,null,null,null,null,null,null,null,null,null,null,null,null,"","","","","",null,null,null,null,null,null,null,null,null,null,null,null,null,null,null,null,"",null,null,"","","",null,null,"",null,"",null,"","","",null,null,null,"",{"$f":"IF('廃車申告（1）'!$BM$70<>\"\",'廃車申告（1）'!$BM$70,\"\")","v":""}]
[27,"","","","","",null,null,null,null,null,null,null,null,null,null,null,null,null,"","","","","",null,null,null,null,null,null,null,null,null,null,null,null,null,null,null,null,"",null,null,"","","",null,null,"",null,"",null,"","","",null,null,null,"",{"$f":"IF('廃車申告（1）'!$BM$70<>\"\",'廃車申告（1）'!$BM$70,\"\")","v":""}]
[28,"","","","","",null,null,null,null,null,null,null,null,null,null,null,null,null,"","","","","",null,null,null,null,null,null,null,null,null,null,null,null,null,null,null,null,"",null,null,"","","",null,null,"",null,"",null,"","","",null,null,null,"",{"$f":"IF('廃車申告（1）'!$BM$70<>\"\",'廃車申告（1）'!$BM$70,\"\")","v":""}]
[29,"","","","","",null,null,null,null,null,null,null,null,null,null,null,null,null,"","","","","",null,null,null,null,null,null,null,null,null,null,null,null,null,null,null,null,"",null,null,"","","",null,null,"",null,"",null,"","","",null,null,null,"",{"$f":"IF('廃車申告（1）'!$BM$70<>\"\",'廃車申告（1）'!$BM$70,\"\")","v":""}]
[30,"","","","","",null,null,null,null,null,null,null,null,null,null,null,null,null,"","","","","",null,null,null,null,null,null,null,null,null,null,null,null,null,null,null,null,"",null,null,"","","",null,null,"",null,"",null,"","","",null,null,null,"",{"$f":"IF('廃車申告（1）'!$BM$70<>\"\",'廃車申告（1）'!$BM$70,\"\")","v":""}]
[31,"","","","","",null,null,null,null,null,null,null,null,null,null,null,null,null,"","","","","",null,null,null,null,null,null,null,null,null,null,null,null,null,null,null,null,"",null,null,"","","",null,null,"",null,"",null,"","","",null,null,null,"",{"$f":"IF('廃車申告（1）'!$BM$70<>\"\",'廃車申告（1）'!$BM$70,\"\")","v":""}]
[32,"","","","","",null,null,null,null,null,null,null,null,null,null,null,null,null,"","","","","",null,null,null,null,null,null,null,null,null,null,null,null,null,null,null,null,"",null,null,"","","",null,null,"",null,"",null,"","","",null,null,null,"",{"$f":"IF('廃車申告（1）'!$BM$70<>\"\",'廃車申告（1）'!$BM$70,\"\")","v":""}]
[33,"","","","","",null,null,null,null,null,null,null,null,null,null,null,null,null,"","","","","",null,null,null,null,null,null,null,null,null,null,null,null,null,null,null,null,"",null,null,"","","",null,null,"",null,"",null,"","","",null,null,null,"",{"$f":"IF('廃車申告（1）'!$BM$70<>\"\",'廃車申告（1）'!$BM$70,\"\")","v":""}]
[34,"","","","","",null,null,null,null,null,null,null,null,null,null,null,null,null,"","","","","",null,null,null,null,null,null,null,null,null,null,null,null,null,null,null,null,"",null,null,"","","",null,null,"",null,"",null,"","","",null,null,null,"",{"$f":"IF('廃車申告（1）'!$BM$70<>\"\",'廃車申告（1）'!$BM$70,\"\")","v":""}]
[35,"","","","","",null,null,null,null,null,null,null,null,null,null,null,null,null,"","","","","",null,null,null,null,null,null,null,null,null,null,null,null,null,null,null,null,"",null,null,"","","",null,null,"",null,"",null,"","","",null,null,null,"",{"$f":"IF('廃車申告（1）'!$BM$70<>\"\",'廃車申告（1）'!$BM$70,\"\")","v":""}]
[36,"","","","","",null,null,null,null,null,null,null,null,null,null,null,null,null,"","","","","",null,null,null,null,null,null,null,null,null,null,null,null,null,null,null,null,"",null,null,"","","",null,null,"",null,"",null,"","","",null,null,null,"",{"$f":"IF('廃車申告（1）'!$BM$70<>\"\",'廃車申告（1）'!$BM$70,\"\")","v":""}]
[37,"","","","","",null,null,null,null,null,null,null,null,null,null,null,null,null,"","","","","",null,null,null,null,null,null,null,null,null,null,null,null,null,null,null,null,"",null,null,"","","",null,null,"",null,"",null,"","","",null,null,null,"",{"$f":"IF('廃車申告（1）'!$BM$70<>\"\",'廃車申告（1）'!$BM$70,\"\")","v":""}]
[38,"","","","","",null,null,null,null,null,null,null,null,null,null,null,null,null,"","","","","",null,null,null,null,null,null,null,null,null,null,null,null,null,null,null,null,"",null,null,"","","",null,null,"",null,"",null,"","","",null,null,null,"",{"$f":"IF('廃車申告（1）'!$BM$70<>\"\",'廃車申告（1）'!$BM$70,\"\")","v":""}]
[39,"","","","","",null,null,null,null,null,null,null,null,null,null,null,null,null,"","","","","",null,null,null,null,null,null,null,null,null,null,null,null,null,null,null,null,"",null,null,"","","",null,null,"",null,"",null,"","","",null,null,null,"",{"$f":"IF('廃車申告（1）'!$BM$70<>\"\",'廃車申告（1）'!$BM$70,\"\")","v":""}]
[40,"","","","","",null,null,null,null,null,null,null,null,null,null,null,null,null,"","","","","",null,null,null,null,null,null,null,null,null,null,null,null,null,null,null,null,"",null,null,"","","",null,null,"",null,"",null,"","","",null,null,null,"",{"$f":"IF('廃車申告（1）'!$BM$70<>\"\",'廃車申告（1）'!$BM$70,\"\")","v":""}]
[41,"","","","","",null,null,null,null,null,null,null,null,null,null,null,null,null,"","","","","",null,null,null,null,null,null,null,null,null,null,null,null,null,null,null,null,"",null,null,"","","",null,null,"",null,"",null,"","","",null,null,null,"",{"$f":"IF('廃車申告（1）'!$BM$70<>\"\",'廃車申告（1）'!$BM$70,\"\")","v":""}]
[42,"","","","","",null,null,null,null,null,null,null,null,null,null,null,null,null,"","","","","",null,null,null,null,null,null,null,null,null,null,null,null,null,null,null,null,"",null,null,"","","",null,null,"",null,"",null,"","","",null,null,null,"",{"$f":"IF('廃車申告（1）'!$BM$70<>\"\",'廃車申告（1）'!$BM$70,\"\")","v":""}]
[43,"","","","","",null,null,null,null,null,null,null,null,null,null,null,null,null,"","","","","",null,null,null,null,null,null,null,null,null,null,null,null,null,null,null,null,"",null,null,"","","",null,null,"",null,"",null,"","","",null,null,null,"",{"$f":"IF('廃車申告（1）'!$BM$70<>\"\",'廃車申告（1）'!$BM$70,\"\")","v":""}]
[44,"","","","","",null,null,null,null,null,null,null,null,null,null,null,null,null,"","","","","",null,null,null,null,null,null,null,null,null,null,null,null,null,null,null,null,"",null,null,"","","",null,null,"",null,"",null,"","","",null,null,null,"",{"$f":"IF('廃車申告（1）'!$BM$70<>\"\",'廃車申告（1）'!$BM$70,\"\")","v":""}]
[45,"","","","","",null,null,null,null,null,null,null,null,null,null,null,null,null,"","","","","",null,null,null,null,null,null,null,null,null,null,null,null,null,null,null,null,"",null,null,"","","",null,null,"",null,"",null,"","","",null,null,null,"",{"$f":"IF('廃車申告（1）'!$BM$70<>\"\",'廃車申告（1）'!$BM$70,\"\")","v":""}]
[46,"","","","","",null,null,null,null,null,null,null,null,null,null,null,null,null,"","","","","",null,null,null,null,null,null,null,null,null,null,null,null,null,null,null,null,"",null,null,"","","",null,null,"",null,"",null,"","","",null,null,null,"",{"$f":"IF('廃車申告（1）'!$BM$70<>\"\",'廃車申告（1）'!$BM$70,\"\")","v":""}]
[47,"","","","","",null,null,null,null,null,null,null,null,null,null,null,null,null,"","","","","",null,null,null,null,null,null,null,null,null,null,null,null,null,null,null,null,"",null,null,"","","",null,null,"",null,"",null,"","","",null,null,null,"",{"$f":"IF('廃車申告（1）'!$BM$70<>\"\",'廃車申告（1）'!$BM$70,\"\")","v":""}]
[48,"","","","","",null,null,null,null,null,null,null,null,null,null,null,null,null,"","","","","",null,null,null,null,null,null,null,null,null,null,null,null,null,null,null,null,"",null,null,"","","",null,null,"",null,"",null,"","","",null,null,null,"",{"$f":"IF('廃車申告（1）'!$BM$70<>\"\",'廃車申告（1）'!$BM$70,\"\")","v":""}]
[49,"","","","","",null,null,null,null,null,null,null,null,null,null,null,null,null,"","","","","",null,null,null,null,null,null,null,null,null,null,null,null,null,null,null,null,"",null,null,"","","",null,null,"",null,"",null,"","","",null,null,null,"",{"$f":"IF('廃車申告（1）'!$BM$70<>\"\",'廃車申告（1）'!$BM$70,\"\")","v":""}]

{"sheet":"申請枚数","index":1,"n_rows":6,"n_cols":6,"rows_kept":6,"cut":false,"hidden":false,"merged":[[5,0,6,2],[5,3,6,4],[5,5,6,5],[8,3,19,10]]}
[]
[]
[]
[]
[]
["申請枚数",null,null,1,null,"台"]

{"sheet":"記入例","index":2,"n_rows":101,"n_cols":87,"rows_kept":101,"cut":false,"hidden":false,"merged":[[2,64,27,79],[2,80,27,84],[2,85,10,90],[54,86,55,99],[2,57,27,63],[54,28,57,32],[2,1,19,27],[2,30,43,34],[2,35,43,38],[2,39,43,51],[2,52,43,56],[33,1,36,14],[37,1,40,25],[41,1,43,17],[23,2,28,20],[44,9,45,10],[28,57,43,63],[28,64,43,79],[44,2,57,2],[44,3,48,8],[87,64,89,99],[88,3,89,51],[62,52,65,77],[62,78,65,85],[62,86,65,99],[66,52,68,63],[28,85,43,99],[44,11,45,13],[44,14,45,14],[44,15,45,18],[58,11,59,13],[58,14,59,14],[58,15,59,18],[66,64,68,99],[28,80,43,84],[44,52,53,63],[54,52,55,69],[54,70,55,85],[54,26,57,27],[58,20,59,51],[54,16,57,17],[46,9,48,51],[54,3,57,8],[54,9,57,15],[54,101,55,114],[56,52,59,69],[56,70,59,85],[56,86,59,99],[56,101,59,114],[67,102,67,109],[69,108,72,109],[69,28,72,32],[69,33,72,51],[69,52,77,63],[69,64,72,99],[74,102,85,110],[60,52,61,77],[60,78,61,85],[60,86,61,99],[2,100,97,100],[11,85,27,99],[44,64,48,99],[49,64,53,99],[73,64,77,99],[78,52,89,56],[78,57,80,63],[78,64,80,99],[81,57,83,63],[100,4,146,94],[90,1,97,2],[90,3,90,7],[90,8,90,12],[90,13,90,17],[90,18,90,51],[91,3,97,7],[91,8,97,12],[91,13,97,17],[91,18,97,51],[91,80,96,98],[73,1,89,2],[73,3,77,8],[58,2,72,2],[44,1,72,1],[78,3,83,8],[81,64,83,99],[84,3,87,8],[84,28,87,32],[84,57,86,63],[84,64,86,99],[87,57,89,63],[69,3,72,8],[69,9,72,15],[49,3,53,8],[49,9,50,13],[49,14,50,51],[51,9,53,51],[54,18,57,19],[54,20,57,21],[54,22,57,23],[54,24,57,25],[54,33,57,51],[69,16,72,17],[69,18,72,19],[69,20,72,21],[69,22,72,23],[69,24,72,25],[69,26,72,27],[58,3,63,8],[58,9,59,10],[60,9,63,51],[64,3,68,8],[64,9,65,13],[64,14,65,51],[66,9,68,51]]}
[]
[]
[null,"軽自動車税(種別割)廃車申告書兼標識返納書\n(原動機付自転車・小型特殊自動車)",null,null,null,null,null,null,null,null,null,null,null,null,null,null,null,null,null,null,null,null,null,null,null,null,null,null,null,null,"申告\n理由",null,null,null,null,"廃車",null,null,null,"１ 廃棄・使用不可",null,null,null,null,null,null,null,null,null,null,null,null,"車　種",null,null,null,null,"原動機付自転車",null,null,null,null,null,null,"15 第2種(125ccまたは1,000W以下)（※を除く）",null,null,null,null,null,null,null,null,null,null,null,null,null,null,null,"標識番号",null,null,null,null,"神戸市"]
[]
[]
[]
[]
[]
[]
[]
[]
[null,null,null,null,null,null,null,null,null,null,null,null,null,null,null,null,null,null,null,null,null,null,null,null,null,null,null,null,null,null,null,null,null,null,null,null,null,null,null,null,null,null,null,null,null,null,null,null,null,null,null,null,null,null,null,null,null,null,null,null,null,null,null,null,null,null,null,null,null,null,null,null,null,null,null,null,null,null,null,null,null,null,null,null,null,"20A〇〇〇〇〇"]
[]
[]
[]
[]
[]
[]
[]
[]
[]
[]
[]
[null,null,"申告年月日（電子申請フォームに記載）"]
[]
[]
[]
[]
[null,null,null,null,null,null,null,null,null,null,null,null,null,null,null,null,null,null,null,null,null,null,null,null,null,null,null,null,null,null,null,null,null,null,null,null,null,null,null,null,null,null,null,null,null,null,null,null,null,null,null,null,null,null,null,null,null,"小型特殊自動車",null,null,null,null,null,null,null,null,null,null,null,null,null,null,null,null,null,null,null,null,null,null,"廃車\n年月日",null,null,null,null,"電子申請フォームに記載"]
[]
[]
[]
[]
[null,"神戸市市税事務所長　あて"]
[]
[]
[]
[null,"つぎのとおり申告及び標識の返納をします。"]
[]
[]
[]
[null,"第34号様式(第16条関係）"]
[]
[]
[null,"納税（申告）義務者","所\n\n有\n\n者","住 　所\n又は\n所在地",null,null,null,null,null,"〒",null,653,null,null,"-","0042",null,null,null,null,null,null,null,null,null,null,null,null,null,null,null,null,null,null,null,null,null,null,null,null,null,null,null,null,null,null,null,null,null,null,null,null,"主たる定置場",null,null,null,null,null,null,null,null,null,null,null,"   "]
[]
[null,null,null,null,null,null,null,null,null,"兵庫県神戸市長田区二葉町５丁目１－３２"]
[]
[]
[null,null,null,"氏　　名\n又は\n名　　称",null,null,null,null,null,"（フリガナ）",null,null,null,null,"コウベ　タロウ",null,null,null,null,null,null,null,null,null,null,null,null,null,null,null,null,null,null,null,null,null,null,null,null,null,null,null,null,null,null,null,null,null,null,null,null,null,null,null,null,null,null,null,null,null,null,null,null,null,"      　　　　　　　　　  　　　　"]
[]
[null,null,null,null,null,null,null,null,null,"神戸　太郎"]
[]
[]
[null,null,null,"生年月日",null,null,null,null,null,"平成",null,null,null,null,null,null,12,null,"年",null,"1",null,"月",null,"1",null,"日",null,"電話番号",null,null,null,null,"078－0000－○○○○",null,null,null,null,null,null,null,null,null,null,null,null,null,null,null,null,null,null,"車  名（メーカー）",null,null,null,null,null,null,null,null,null,null,null,null,null,null,null,null,null,"型式及び年式",null,null,null,null,null,null,null,null,null,null,null,null,null,null,null,"総排気量又は定格出力"]
[]
[null,null,null,null,null,null,null,null,null,null,null,null,null,null,null,null,null,null,null,null,null,null,null,null,null,null,null,null,null,null,null,null,null,null,null,null,null,null,null,null,null,null,null,null,null,null,null,null,null,null,null,null,null,null,null,null,null,null,null,null,null,null,null,null,null,null,null,null,null,null,null,null,null,null,null,null,null,null,null,null,null,null,null,null,null,null,"cc\n W"]
[]
[null,null,"使\n\n用\n\n者","住 　所\n又は\n所在地",null,null,null,null,null,"〒",null,null,null,null,"-",null,null,null,null,null,"１．所有者と同じ"]
[]
[null,null,null,null,null,null,null,null,null,null,null,null,null,null,null,null,null,null,null,null,null,null,null,null,null,null,null,null,null,null,null,null,null,null,null,null,null,null,null,null,null,null,null,null,null,null,null,null,null,null,null,null,"車 台 番 号",null,null,null,null,null,null,null,null,null,null,null,null,null,null,null,null,null,null,null,null,null,null,null,null,null,"型式認定番号",null,null,null,null,null,null,null,"最高出力"]
[]
[null,null,null,null,null,null,null,null,null,null,null,null,null,null,null,null,null,null,null,null,null,null,null,null,null,null,null,null,null,null,null,null,null,null,null,null,null,null,null,null,null,null,null,null,null,null,null,null,null,null,null,null,null,null,null,null,null,null,null,null,null,null,null,null,null,null,null,null,null,null,null,null,null,null,null,null,null,null,null,null,null,null,null,null,null,null,"kW"]
[]
[null,null,null,"氏　　名\n又は\n名　　称",null,null,null,null,null,"（フリガナ）"]
[]
[null,null,null,null,null,null,null,null,null,null,null,null,null,null,null,null,null,null,null,null,null,null,null,null,null,null,null,null,null,null,null,null,null,null,null,null,null,null,null,null,null,null,null,null,null,null,null,null,null,null,null,null,"標識返納の有無",null,null,null,null,null,null,null,null,null,null,null,"１．返納する"]
[]
[]
[null,null,null,"生年月日",null,null,null,null,null,null,null,null,null,null,null,null,null,null,"年",null,null,null,"月",null,null,null,"日",null,"電話番号",null,null,null,null,null,null,null,null,null,null,null,null,null,null,null,null,null,null,null,null,null,null,null,"標識返納がない場合\nその理由"]
[]
[]
[]
[null,"届　出　者",null,"住　　所\n又は\n所 在 地",null,null,null,null,null,null,null,null,null,null,null,null,null,null,null,null,null,null,null,null,null,null,null,null,null,null,null,null,null,null,null,null,null,null,null,null,null,null,null,null,null,null,null,null,null,null,null,null,null,null,null,null,null,null,null,null,null,null,null,null,"    具体的に："]
[]
[]
[]
[]
[null,null,null,"氏　　名\n又は\n名　　称",null,null,null,null,null,"（フリガナ）",null,null,null,null,null,null,null,null,null,null,null,null,null,null,null,null,null,null,null,null,null,null,null,null,null,null,null,null,null,null,null,null,null,null,null,null,null,null,null,null,null,null,"盗難\n届出",null,null,null,null,"届出年月日",null,null,null,null,null,null,"令和　　　   　　年　　  　　 　月　　　　  　日"]
[]
[]
[null,null,null,null,null,null,null,null,null,null,null,null,null,null,null,null,null,null,null,null,null,null,null,null,null,null,null,null,null,null,null,null,null,null,null,null,null,null,null,null,null,null,null,null,null,null,null,null,null,null,null,null,null,null,null,null,null,"被害年月日",null,null,null,null,null,null,"令和　　　 　  　年　　　   　　月　　　　  　日"]
[]
[]
[null,null,null,"担当者名\n法人等のみ",null,null,null,null,null,null,null,null,null,null,null,null,null,null,null,null,null,null,null,null,null,null,null,null,"電話番号",null,null,null,null,null,null,null,null,null,null,null,null,null,null,null,null,null,null,null,null,null,null,null,null,null,null,null,null,"届出警察署",null,null,null,null,null,null,"　　　　　　　　　　　　警察署　　　　　　　　　　　　交番・駐在所"]
[]
[]
[null,null,null,null,null,null,null,null,null,null,null,null,null,null,null,null,null,null,null,null,null,null,null,null,null,null,null,null,null,null,null,null,null,null,null,null,null,null,null,null,null,null,null,null,null,null,null,null,null,null,null,null,null,null,null,null,null,"受理番号"]
[null,null,null,"この申告については、納税義務者本人から委任を受けていることを誓約いたします。"]
[]
[null,"処理欄",null,"受付",null,null,null,null,"入力",null,null,null,null,"照合",null,null,null,null,"届出者確認書類"]
[null,null,null,null,null,null,null,null,null,null,null,null,null,null,null,null,null,null,"\n□ 運転免許証　　　　　□ マイナンバー\n□ その他"]
[]
[]
[]
[]
[]
[]
[]
[]
[null,null,null,null,"第34号様式　記載要領\n\n１．この申告書は、原動機付自転車又は小型特殊自動車１台ごとに作成すること。\n２．「申告の理由」及び「種別」の各欄には、該当箇所の□（チェック欄）にレを記入すること。なお、「種別」の欄に\n　　ついては該当箇所の□（チェック欄）のいずれか１つのみにレを記入すること。\n３．「納税（申告）義務者」の欄の「住所又は所在地」には、都道府県、市町村名、番地まで記入すること。\n　　  また、納税義務者等がビル等に入居している場合又は同居人である場合には、ビル等の名称のほかに棟号数、室番号又は\n　　  ○○様方のように、郵便物が確実に届くように記入すること。\n４．「納税（申告）義務者」の欄には、所有者と使用者が同じである場合は、所有者欄のみを記入すること。\n５．「届出者」の欄には、申告に来た者が納税義務者以外の者である場合に記入すること。\n６．「主たる定置場」の欄には、申告の際の主たる定置場が所有者の住所又は所在地と同じである場合については１を○で囲み、\n　　  それ以外の場合については２の欄にその住所又は所在地を具体的に記入すること。\n７．「最高出力」の欄は、総排気量125cc以下かつ最高出力4.0㎾以下の一般原付の申告時のみ記入すること。\n８．「標識返納の有無」の欄には、標識の返納が有る場合には１を、また、標識の返納のない場合には２を○で囲むこと。\n　　  なお、標識の返納のない場合については、その理由に該当する項目を○で囲み、具体的な理由を〔　〕内に記入すること。\n９．「盗難届出」の欄には、「申告の理由」又は「標識返納がない場合、その理由」欄において「盗難」に該当する場合に、\n　　  その盗難を届出た年月日、被害年月日、届出警察署及び受理番号を記入すること。"]

{"sheet":"廃車申告（1）","index":3,"n_rows":101,"n_cols":97,"rows_kept":101,"cut":false,"hidden":false,"merged":[[84,96,86,99],[84,73,86,77],[84,64,86,72],[84,78,86,87],[84,88,86,95],[81,75,83,77],[81,78,83,78],[81,79,83,80],[81,81,83,83],[81,84,83,87],[81,88,83,91],[81,92,83,99],[81,64,83,69],[81,70,83,74],[44,14,45,14],[44,15,45,18],[58,14,59,14],[58,15,59,18],[58,11,59,13],[56,86,59,95],[56,96,59,99],[69,24,72,25],[69,26,72,27],[54,16,57,17],[54,18,57,19],[54,20,57,21],[54,22,57,23],[60,9,63,51],[64,9,65,13],[64,14,65,51],[58,9,59,10],[69,52,72,63],[73,64,77,99],[78,75,80,77],[78,78,80,78],[2,64,27,79],[28,64,43,79],[44,64,48,99],[28,57,43,63],[44,52,53,63],[2,80,27,84],[28,80,43,84],[2,52,43,56],[2,57,27,63],[78,79,80,80],[78,81,80,83],[78,84,80,87],[78,88,80,91],[78,92,80,99],[78,70,80,74],[78,64,80,69],[54,101,55,114],[56,101,59,114],[88,3,89,51],[67,102,67,109],[69,3,72,8],[69,28,72,32],[69,64,72,99],[69,108,72,109],[62,52,65,77],[62,78,65,85],[64,3,68,8],[87,64,89,99],[74,102,85,110],[81,57,83,63],[84,28,87,32],[54,52,55,69],[62,86,65,95],[62,96,65,99],[54,33,57,51],[58,3,63,8],[54,86,55,99],[56,70,59,85],[60,78,61,85],[54,3,57,8],[91,3,97,7],[91,8,97,12],[91,13,97,17],[91,18,97,51],[73,1,89,2],[87,57,89,63],[78,3,83,8],[78,52,89,56],[78,57,80,63],[84,3,87,8],[84,57,86,63],[73,3,77,8],[73,52,77,63],[100,4,146,94],[23,2,28,20],[2,100,97,100],[49,64,53,99],[66,52,68,63],[66,64,68,99],[69,33,72,51],[28,85,43,99],[66,9,68,51],[44,9,45,10],[60,52,61,77],[69,9,72,15],[46,9,48,51],[2,85,10,90],[11,85,27,99],[49,9,50,13],[56,52,59,69],[90,1,97,2],[90,3,90,7],[90,8,90,12],[90,13,90,17],[90,18,90,51],[54,70,55,85],[60,86,61,99],[58,2,72,2],[2,1,19,27],[2,30,43,34],[2,35,43,38],[44,1,72,1],[54,28,57,32],[44,2,57,2],[44,3,48,8],[49,14,50,51],[51,9,53,51],[58,20,59,51],[49,3,53,8],[54,9,57,15],[33,1,36,14],[37,1,40,25],[2,39,43,51],[41,1,43,17],[54,26,57,27],[54,24,57,25],[69,16,72,17],[69,18,72,19],[69,20,72,21],[69,22,72,23],[44,11,45,13]]}
[]
[]
[null,"軽自動車税(種別割)廃車申告書兼標識返納書\n(原動機付自転車・小型特殊自動車)",null,null,null,null,null,null,null,null,null,null,null,null,null,null,null,null,null,null,null,null,null,null,null,null,null,null,null,null,"申告\n理由",null,null,null,null,"廃車",null,null,null,null,null,null,null,null,null,null,null,null,null,null,null,null,"車　種",null,null,null,null,"原動機付自転車",null,null,null,null,null,null,null,null,null,null,null,null,null,null,null,null,null,null,null,null,null,null,"標識番号",null,null,null,null,"神戸市"]
[]
[]
[]
[]
[]
[]
[]
[]
[]
[]
[]
[]
[]
[]
[]
[]
[]
[]
[]
[]
[null,null,"申告年月日（電子申請フォームに記載）"]
[]
[]
[]
[]
[null,null,null,null,null,null,null,null,null,null,null,null,null,null,null,null,null,null,null,null,null,null,null,null,null,null,null,null,null,null,null,null,null,null,null,null,null,null,null,null,null,null,null,null,null,null,null,null,null,null,null,null,null,null,null,null,null,"小型特殊自動車",null,null,null,null,null,null,null,null,null,null,null,null,null,null,null,null,null,null,null,null,null,null,"廃車\n年月日",null,null,null,null,"電子申請フォームに記載"]
[]
[]
[]
[]
[null,"神戸市市税事務所長　あて"]
[]
[]
[]
[null,"つぎのとおり申告及び標識の返納をします。"]
[]
[]
[]
[null,"第34号様式(第16条関係）"]
[]
[]
[null,"納税（申告）義務者","所\n\n有\n\n者","住 　所\n又は\n所在地",null,null,null,null,null,"〒",null,null,null,null,"-",null,null,null,null,null,null,null,null,null,null,null,null,null,null,null,null,null,null,null,null,null,null,null,null,null,null,null,null,null,null,null,null,null,null,null,null,null,"主たる定置場",null,null,null,null,null,null,null,null,null,null,null,""]
[]
[]
[]
[]
[null,null,null,"氏　　名\n又は\n名　　称",null,null,null,null,null,"（フリガナ）"]
[]
[]
[]
[]
[null,null,null,"生年月日",null,null,null,null,null,null,null,null,null,null,null,null,null,null,"年",null,null,null,"月",null,null,null,"日",null,"電話番号",null,null,null,null,null,null,null,null,null,null,null,null,null,null,null,null,null,null,null,null,null,null,null,"車  名（メーカー）",null,null,null,null,null,null,null,null,null,null,null,null,null,null,null,null,null,"型式及び年式",null,null,null,null,null,null,null,null,null,null,null,null,null,null,null,"総排気量又は定格出力"]
[]
[null,null,null,null,null,null,null,null,null,null,null,null,null,null,null,null,null,null,null,null,null,null,null,null,null,null,null,null,null,null,null,null,null,null,null,null,null,null,null,null,null,null,null,null,null,null,null,null,null,null,null,null,null,null,null,null,null,null,null,null,null,null,null,null,null,null,null,null,null,null,null,null,null,null,null,null,null,null,null,null,null,null,null,null,null,null,null,null,null,null,null,null,null,null,null,null,"cc\n W"]
[]
[null,null,"使\n\n用\n\n者","住 　所\n又は\n所在地",null,null,null,null,null,"〒",null,null,null,null,"-"]
[]
[null,null,null,null,null,null,null,null,null,null,null,null,null,null,null,null,null,null,null,null,null,null,null,null,null,null,null,null,null,null,null,null,null,null,null,null,null,null,null,null,null,null,null,null,null,null,null,null,null,null,null,null,"車 台 番 号",null,null,null,null,null,null,null,null,null,null,null,null,null,null,null,null,null,null,null,null,null,null,null,null,null,"型式認定番号",null,null,null,null,null,null,null,"最高出力"]
[]
[null,null,null,null,null,null,null,null,null,null,null,null,null,null,null,null,null,null,null,null,null,null,null,null,null,null,null,null,null,null,null,null,null,null,null,null,null,null,null,null,null,null,null,null,null,null,null,null,null,null,null,null,null,null,null,null,null,null,null,null,null,null,null,null,null,null,null,null,null,null,null,null,null,null,null,null,null,null,null,null,null,null,null,null,null,null,null,null,null,null,null,null,null,null,null,null,"kW"]
[]
[null,null,null,"氏　　名\n又は\n名　　称",null,null,null,null,null,"（フリガナ）"]
[]
[null,null,null,null,null,null,null,null,null,null,null,null,null,null,null,null,null,null,null,null,null,null,null,null,null,null,null,null,null,null,null,null,null,null,null,null,null,null,null,null,null,null,null,null,null,null,null,null,null,null,null,null,"標識返納の有無"]
[]
[]
[null,null,null,"生年月日",null,null,null,null,null,null,null,null,null,null,null,null,null,null,"年",null,null,null,"月",null,null,null,"日",null,"電話番号",null,null,null,null,"92918472917",null,null,null,null,null,null,null,null,null,null,null,null,null,null,null,null,null,null,"標識返納がない場合\nその理由"]
[]
[]
[]
[null,"届　出　者",null,"住　　所\n又は\n所 在 地"]
[]
[]
[]
[]
[null,null,null,"氏　　名\n又は\n名　　称",null,null,null,null,null,"（フリガナ）",null,null,null,null,null,null,null,null,null,null,null,null,null,null,null,null,null,null,null,null,null,null,null,null,null,null,null,null,null,null,null,null,null,null,null,null,null,null,null,null,null,null,"盗難\n届出",null,null,null,null,"届出年月日",null,null,null,null,null,null,null,null,null,null,null,null,"令和",null,null,null,null,null,null,null,"年",null,null,"月",null,null,null,null,null,null,"日"]
[]
[]
[null,null,null,null,null,null,null,null,null,null,null,null,null,null,null,null,null,null,null,null,null,null,null,null,null,null,null,null,null,null,null,null,null,null,null,null,null,null,null,null,null,null,null,null,null,null,null,null,null,null,null,null,null,null,null,null,null,"被害年月日",null,null,null,null,null,null,null,null,null,null,null,null,"令和",null,null,null,null,null,null,null,"年",null,null,"月",null,null,null,null,null,null,"日"]
[]
[]
[null,null,null,"担当者名\n法人等のみ",null,null,null,null,null,null,null,null,null,null,null,null,null,null,null,null,null,null,null,null,null,null,null,null,"電話番号",null,null,null,null,null,null,null,null,null,null,null,null,null,null,null,null,null,null,null,null,null,null,null,null,null,null,null,null,"届出警察署",null,null,null,null,null,null,null,null,null,null,null,null,null,null,null,"警察署　　",null,null,null,null,null,null,null,null,null,null,null,null,null,null,"交番・駐在所"]
[]
[]
[null,null,null,null,null,null,null,null,null,null,null,null,null,null,null,null,null,null,null,null,null,null,null,null,null,null,null,null,null,null,null,null,null,null,null,null,null,null,null,null,null,null,null,null,null,null,null,null,null,null,null,null,null,null,null,null,null,"受理番号"]
[null,null,null,"この申告については、納税義務者本人から委任を受けていることを誓約いたします。"]
[]
[null,"処理欄",null,"受付",null,null,null,null,"入力",null,null,null,null,"照合",null,null,null,null,"届出者確認書類"]
[null,null,null,null,null,null,null,null,null,null,null,null,null,null,null,null,null,null,"\n□ 運転免許証　　　　　□ マイナンバー\n□ その他"]
[]
[]
[]
[]
[]
[]
[]
[]
[null,null,null,null,"第34号様式　記載要領\n\n１．この申告書は、原動機付自転車又は小型特殊自動車１台ごとに作成すること。\n２．「申告の理由」及び「種別」の各欄には、該当箇所の□（チェック欄）にレを記入すること。なお、「種別」の欄に\n　　ついては該当箇所の□（チェック欄）のいずれか１つのみにレを記入すること。\n３．「納税（申告）義務者」の欄の「住所又は所在地」には、都道府県、市町村名、番地まで記入すること。\n　　  また、納税義務者等がビル等に入居している場合又は同居人である場合には、ビル等の名称のほかに棟号数、室番号又は\n　　  ○○様方のように、郵便物が確実に届くように記入すること。\n４．「納税（申告）義務者」の欄には、所有者と使用者が同じである場合は、所有者欄のみを記入すること。\n５．「届出者」の欄には、申告に来た者が納税義務者以外の者である場合に記入すること。\n６．「主たる定置場」の欄には、申告の際の主たる定置場が所有者の住所又は所在地と同じである場合については１を○で囲み、\n　　  それ以外の場合については２の欄にその住所又は所在地を具体的に記入すること。\n７．「最高出力」の欄は、総排気量125cc以下かつ最高出力4.0㎾以下の一般原付の申告時のみ記入すること。\n８．「標識返納の有無」の欄には、標識の返納が有る場合には１を、また、標識の返納のない場合には２を○で囲むこと。\n　　  なお、標識の返納のない場合については、その理由に該当する項目を○で囲み、具体的な理由を〔　〕内に記入すること。\n９．「盗難届出」の欄には、「申告の理由」又は「標識返納がない場合、その理由」欄において「盗難」に該当する場合に、\n　　  その盗難を届出た年月日、被害年月日、届出警察署及び受理番号を記入すること。"]

{"sheet":"DV_List","index":4,"n_rows":7,"n_cols":7,"rows_kept":7,"cut":false,"hidden":true,"merged":[]}
["１ 廃棄・使用不能",null,null,"大正","大正","１．有（返納）","イ．盗難"]
["２ 譲渡","11 第1種(50ccまたは600W以下)","51 農耕作業用","昭和","昭和","２．無（未返納）","ロ．紛失"]
["４ 市外転出","11 第1種(125cc以下かつ最高出力4kW以下)※","55 その他作業用","平成","平成",null,"ハ．車体変更"]
["５ 盗難・紛失","12 第1種 特定原付(600W以下)","57 その他作業用(電気)","令和","令和",null,"ニ．その他"]
["６ その他","13 第2種(90ccまたは800W以下)（※を除く）"]
[null,"15 第2種(125ccまたは1,000W以下)（※を除く）"]
[null,"17 ミニカー(50ccまたは600W以下）"]